bitfinex-derivatives/quotes_ETHF0:USTF0_20250830
["timestamp","ask_amount","ask_price","bid_price","bid_amount"]
[1756536358793,0.0033,4393.2,4393.1,32.748]
[1756536358982,0.25951594,4393.2,4393.1,33.0536]
[1756536359185,0.25621594,4393.2,4393.1,33.0536]
[1756536360988,0.25751594,4393.2,4393.1,33.2866]
[1756536361193,0.25621594,4393.2,4393.1,33.2866]
[1756536361394,0.25751594,4393.2,4393.1,33.0536]
[1756536361599,0.25751594,4393.2,4393.1,33.2866]
[1756536361796,1.225376,4394.6,4394.0,0.3056]
[1756536362097,3.2078,4396.8,4395.6,0.40945]
[1756536362289,3.2078,4396.8,4395.9,3.2078]
[1756536362492,3.2078,4396.8,4395.9,5.2307181]
[1756536362693,3.2078,4396.8,4396.0,0.22746]
[1756536362994,3.2078,4396.8,4396.1,0.238]
[1756536363195,3.2078,4396.8,4396.1,0.46546]
[1756536363391,3.2078,4396.8,4396.2,0.22746]
[1756536363793,3.2078,4396.8,4396.1,0.41874107]
[1756536363995,3.2078,4396.8,4396.2,0.22746]
[1756536364397,3.2078,4396.8,4396.1,0.41874107]
[1756536364398,3.3977,4396.8,4396.1,0.41874107]
[1756536364595,3.3977,4396.8,4396.2,0.22746]
[1756536364799,3.3977,4396.8,4396.1,0.41874107]
[1756536365299,3.3977,4396.8,4396.2,0.51497606]
[1756536365497,3.704,4396.8,4396.3,0.51497606]
[1756536365698,3.704,4396.8,4396.4,0.51497606]
[1756536365888,3.3977,4396.8,4396.5,0.75297606]
[1756536366097,0.3063,4396.7,4396.6,0.30173863]
[1756536367299,3.2078,4397.5,4396.6,0.30173863]
[1756536367300,3.3941,4397.5,4396.7,0.40936]
[1756536367601,3.3941,4397.5,4396.8,0.51495413]
[1756536367794,3.3941,4397.5,4396.9,0.75295413]
[1756536367996,0.2909,4397.4,4397.0,0.30173863]
[1756536368297,0.2909,4397.4,4397.1,0.30173863]
[1756536368600,0.1863,4397.4,4397.2,0.30173863]
[1756536368801,0.1863,4397.4,4397.3,0.53973863]
[1756536369298,3.2078,4397.5,4397.3,0.53973863]
[1756536369499,3.2078,4397.5,4397.4,0.30173863]
[1756536370305,3.2078,4397.5,4397.3,0.238]
[1756536370694,3.4987,4397.5,4397.3,0.238]
[1756536371307,0.4772,4397.9,4397.3,0.238]
[1756536371514,0.2909,4397.8,4397.6,3.2078]
[1756536372111,0.4772,4397.7,4397.6,3.2078]
[1756536372411,0.4772,4397.7,4397.6,3.4448]
[1756536376410,0.2909,4397.9,4397.6,3.4448]
[1756536376719,1.6338347,4402.3,4397.6,3.4448]
[1756536376720,3.2078,4399.6,4399.5,0.4811]
[1756536377017,3.3941,4399.6,4399.5,0.7181]
[1756536378113,3.3941,4399.6,4399.5,0.1911]
[1756536378316,3.3941,4399.6,4399.5,0.238]
[1756536378717,3.685,4399.6,4399.5,0.238]
[1756536379118,3.685,4399.6,4399.5,0.4291]
[1756536379314,0.22383515,4402.8,4399.5,0.4291]
[1756536379315,0.2909,4400.7,4399.5,37.1801]
[1756536379514,0.2909,4400.7,4400.1,3.2078]
[1756536379718,0.2909,4400.6,4400.2,0.237]
[1756536379920,0.1863,4400.3,4400.2,0.237]
[1756536380222,0.2909,4400.2,4400.1,3.2078]
[1756536380415,0.4772,4400.2,4400.1,0.239]
[1756536380615,0.2909,4400.2,4400.1,0.239]
[1756536382020,0.4772,4399.6,4399.5,32.751]
[1756536382222,0.4772,4399.6,4399.5,32.99]
[1756536384115,1.20738994,4403.4,4399.5,37.2173]
[1756536384316,0.2275,4407.4,4399.5,37.2173]
[1756536384317,0.4772,4401.6,4400.7,3.2078]
[1756536384523,0.4772,4401.6,4400.8,0.241]
[1756536384919,0.4772,4400.8,4400.7,3.2078]
[1756536385312,0.4772,4400.8,4400.7,3.4488]
[1756536385517,0.4772,4400.8,4400.7,3.2078]
[1756536385717,0.2909,4400.7,4399.6,3.2078]
[1756536385920,0.2909,4400.7,4399.7,0.241]
[1756536386118,3.2078,4401.0,4399.7,0.45405562]
[1756536386318,0.2909,4400.9,4399.7,0.45405562]
[1756536386516,3.2078,4401.0,4399.7,0.45405562]
[1756536386712,0.2909,4400.9,4399.8,0.241]
[1756536387118,0.2909,4400.9,4399.9,0.21305562]
[1756536387319,3.2078,4401.0,4399.6,3.2078]
[1756536387524,0.1863,4400.1,4400.0,0.241]
[1756536387722,0.4772,4400.1,4400.0,0.241]
[1756536388126,0.2909,4400.0,4399.7,0.21307411]
[1756536388425,0.2909,4400.0,4399.8,0.45307411]
[1756536388620,0.2909,4400.0,4399.9,0.21307411]
[1756536388824,0.4772,4400.0,4399.9,0.45307411]
[1756536390127,0.4772,4400.0,4399.9,0.24]
[1756536392430,0.4772,4400.0,4399.9,0.45309822]
[1756536394629,0.4772,4400.0,4399.9,0.24]
[1756536395327,0.1863,4399.6,4399.5,32.751]
[1756536395525,0.4772,4399.6,4399.5,32.991]
[1756536395730,0.4772,4399.6,4399.5,0.24]
[1756536397334,0.66485949,4399.6,4399.5,0.24]
[1756536398030,0.37395949,4399.6,4398.5,3.2078]
[1756536398329,0.4881,4398.7,4398.6,0.45313476]
[1756536399031,0.4881,4398.7,4398.6,0.45213476]
[1756536399828,0.4881,4398.7,4398.6,0.21313476]
[1756536400334,0.4881,4398.7,4398.6,0.45213476]
[1756536406240,0.4881,4398.7,4398.6,0.4521428]
[1756536406735,0.4881,4398.7,4398.6,0.45214289]
[1756536411734,0.4881,4398.7,4398.6,0.21314289]
[1756536411935,0.4881,4398.7,4398.1,32.733]
[1756536411936,0.2044,4398.2,4398.1,32.733]
[1756536412136,0.4881,4398.2,4398.1,33.1841678]
[1756536412539,0.4881,4398.2,4398.1,32.9461678]
[1756536412740,0.4881,4398.2,4398.1,33.1841678]
[1756536413441,0.4881,4398.2,4398.1,32.733]
[1756536413641,0.4881,4398.2,4398.1,32.971]
[1756536418943,0.2837,4398.1,4397.3,3.2078]
[1756536419247,3.60054261,4398.2,4397.4,0.238]
[1756536419248,0.2044,4397.5,4397.4,0.238]
[1756536419446,0.4881,4397.5,4397.4,0.238]
[1756536419646,0.39280365,4397.5,4397.4,0.238]
[1756536419849,0.67650365,4397.5,4397.4,0.238]
[1756536420643,0.18840365,4397.5,4397.4,0.238]
[1756536420942,0.2044,4398.2,4397.4,4.238]
[1756536421149,0.188407,4398.1,4397.5,0.238]
[1756536421350,0.2837,4397.9,4397.5,0.238]
[1756536421550,0.2837,4398.6,4397.5,0.238]
[1756536421747,0.1884358,4398.5,4397.5,0.238]
[1756536421945,0.4881,4398.3,4397.5,0.238]
[1756536422150,0.3928358,4398.2,4397.5,0.238]
[1756536422454,0.3928358,4398.1,4397.5,0.238]
[1756536422649,0.1884358,4398.0,4397.5,0.238]
[1756536422851,0.4721358,4397.9,4397.5,0.238]
[1756536423052,0.2837,4397.9,4397.5,0.238]
[1756536424149,0.18841108,4397.8,4397.5,0.238]
[1756536424350,0.2837,4397.9,4397.5,0.238]
[1756536424548,0.18838823,4397.8,4397.5,0.238]
[1756536424744,0.2044,4397.6,4397.3,3.2078]
[1756536424950,0.4881,4397.5,4397.4,0.237]
[1756536425151,0.2837,4397.5,4397.4,0.237]
[1756536425453,0.2837,4398.1,4397.4,0.237]
[1756536425751,0.2837,4397.9,4397.4,0.237]
[1756536425954,0.2837,4397.7,4397.4,0.237]
[1756536426145,0.2044,4397.7,4397.4,0.237]
[1756536426345,0.2044,4397.6,4397.4,0.237]
[1756536426543,0.2837,4397.5,4397.4,0.237]
[1756536429350,0.4881,4397.5,4397.4,0.2379]
[1756536430760,0.4901,4397.4,4397.3,3.2078]
[1756536431054,0.4901,4397.4,4397.3,3.4457]
[1756536431754,3.2078,4398.9,4397.3,3.4457]
[1756536431952,0.2979,4398.0,4397.3,3.4457]
[1756536432158,0.18845086,4397.9,4397.3,3.2087]
[1756536432358,0.4901,4397.8,4397.7,0.0009]
[1756536432555,0.4901,4397.8,4397.7,0.2379]
[1756536433752,0.4901,4397.8,4397.7,0.237]
[1756536434153,0.4901,4397.8,4397.7,0.2379]
[1756536434759,0.4901,4397.8,4397.7,0.237]
[1756536435460,0.4901,4397.7,4397.6,0.0009]
[1756536435660,0.4901,4397.7,4397.6,0.2379]
[1756536436162,0.4901,4397.7,4397.6,0.237]
[1756536437258,0.2979,4398.8,4397.6,0.2379]
[1756536437561,0.1922,4397.9,4397.8,3.2087]
[1756536437763,0.4901,4397.9,4397.8,3.2087]
[1756536437955,0.2979,4397.9,4397.8,3.2087]
[1756536438860,0.4901,4397.9,4397.8,3.4447]
[1756536439462,0.2979,4398.8,4397.8,3.4447]
[1756536439663,0.2979,4398.6,4397.8,3.4447]
[1756536439861,0.2979,4398.4,4397.8,3.4447]
[1756536440059,0.18868107,4398.3,4397.8,3.4447]
[1756536440262,0.2979,4399.3,4397.9,0.63661]
[1756536440461,0.2979,4399.1,4398.4,3.2078]
[1756536440659,0.1922,4398.9,4398.5,2.2661884]
[1756536440854,3.2078,4399.9,4398.5,2.2661884]
[1756536440855,0.2979,4398.7,4398.5,0.236]
[1756536441160,0.4901,4398.6,4398.5,2.0301884]
[1756536441363,0.67880296,4398.6,4398.5,0.236]
[1756536441861,0.1922,4398.4,4398.3,2.0301884]
[1756536442060,0.67880407,4398.4,4398.3,2.2661884]
[1756536442364,0.67880407,4398.4,4398.3,0.236]
[1756536444760,0.18870407,4398.4,4398.3,0.236]
[1756536444967,0.1922,4398.6,4398.3,0.236]
[1756536445264,0.67877423,4398.5,4398.3,2.26718673]
[1756536445466,0.4901,4398.5,4398.3,2.26718673]
[1756536445963,0.2979,4398.4,4398.3,2.26718673]
[1756536446263,0.4901,4398.4,4398.3,0.236]
[1756536446462,32.738,4400.7,4399.2,0.40912]
[1756536446463,3.2078,4400.7,4399.2,0.40912]
[1756536446767,2.277,4403.5,4398.3,40.41616]
[1756536446768,0.2979,4400.5,4399.9,2.02876114]
[1756536447073,0.2979,4401.1,4400.0,2.26676114]
[1756536447367,3.2078,4401.2,4400.0,2.26676114]
[1756536447368,0.2979,4401.0,4400.0,0.41709033]
[1756536447666,0.2979,4401.1,4400.0,0.238]
[1756536447861,3.2078,4401.2,4400.3,3.2078]
[1756536448062,0.2979,4401.1,4400.3,3.2078]
[1756536448267,0.1922,4400.5,4400.4,0.237]
[1756536448568,0.4901,4400.5,4400.4,0.237]
[1756536451867,0.1922,4400.5,4400.3,3.2078]
[1756536452069,0.1922,4400.7,4400.4,0.237]
[1756536452368,0.2979,4401.7,4400.4,0.237]
[1756536452765,0.22722001,4401.6,4400.5,0.409]
[1756536453268,0.22722001,4401.5,4400.5,0.409]
[1756536453468,0.22722001,4401.6,4400.6,0.237]
[1756536453665,3.2078,4403.9,4401.5,3.2078]
[1756536453971,3.2078,4404.5,4403.7,0.40871]
[1756536454171,3.2078,4405.0,4403.9,0.40869]
[1756536454365,3.2078,4405.0,4403.8,0.24]
[1756536454568,3.2078,4405.0,4404.1,3.2078]
[1756536454866,3.2078,4405.0,4404.2,0.24]
[1756536455062,3.2078,4405.0,4404.3,0.24]
[1756536455268,3.2078,4405.0,4404.1,3.2078]
[1756536455468,3.2078,4405.0,4404.2,0.24]
[1756536456670,3.2078,4405.0,4403.6,33.14471]
[1756536456671,3.2078,4405.0,4403.6,35.9438]
[1756536457071,3.2078,4405.0,4403.7,0.24]
[1756536457368,3.2078,4405.0,4403.6,35.9438]
[1756536457568,1.8,4406.2,4403.6,35.9438]
[1756536457569,3.2078,4404.5,4403.7,0.24]
[1756536457768,3.2078,4404.5,4403.6,35.9438]
[1756536457960,3.2078,4404.5,4403.7,0.24]
[1756536458673,3.2078,4404.5,4403.8,0.24]
[1756536459566,3.2078,4404.5,4403.9,0.24]
[1756536460262,3.2078,4404.5,4403.6,32.736]
[1756536460471,3.2078,4405.0,4403.7,0.24]
[1756536461473,3.2078,4405.0,4403.6,32.736]
[1756536461668,2.7078,4405.0,4403.7,0.24]
[1756536461869,2.7078,4405.0,4403.8,0.24]
[1756536462075,3.2078,4404.5,4403.8,0.24]
[1756536462573,3.2078,4404.5,4403.9,0.24]
[1756536462773,3.2078,4404.5,4404.0,0.24]
[1756536463074,3.2078,4404.5,4404.1,0.24]
[1756536463976,7.2078,4404.5,4403.6,32.736]
[1756536464178,3.2078,4403.9,4403.6,32.736]
[1756536464373,3.2078,4403.9,4403.6,0.24]
[1756536464774,3.2078,4403.9,4402.5,3.2078]
[1756536464970,3.2078,4403.4,4402.6,0.24]
[1756536465175,3.2078,4403.4,4402.5,3.2078]
[1756536465676,3.2078,4403.4,4402.6,0.239]
[1756536466572,3.2078,4403.9,4402.6,0.239]
[1756536467784,3.2078,4403.9,4402.7,0.239]
[1756536469583,3.2078,4403.9,4402.8,0.239]
[1756536470979,3.2078,4403.9,4402.5,3.2078]
[1756536471182,3.2078,4403.9,4402.6,0.239]
[1756536472289,3.2078,4403.4,4402.7,0.239]
[1756536472787,3.2078,4403.4,4402.2,32.714]
[1756536472981,3.2078,4402.9,4402.3,0.239]
[1756536473181,3.2078,4402.9,4402.2,32.714]
[1756536473385,3.2078,4402.9,4402.3,0.239]
[1756536473886,3.2078,4402.4,4402.2,32.714]
[1756536474082,3.2078,4402.4,4402.3,0.239]
[1756536474682,3.2078,4402.4,4402.2,32.714]
[1756536474977,3.2078,4402.4,4402.2,32.953]
[1756536476191,3.2078,4402.6,4402.2,32.953]
[1756536476487,3.2078,4402.6,4402.2,32.714]
[1756536476791,3.2078,4402.6,4402.3,0.239]
[1756536476981,3.2078,4402.6,4402.2,32.714]
[1756536477177,3.2078,4402.6,4401.4,3.2078]
[1756536477385,3.2078,4402.0,4401.5,0.239]
[1756536478086,3.2078,4402.0,4401.6,0.239]
[1756536478683,3.2078,4402.0,4401.7,0.239]
[1756536478990,3.2078,4402.0,4400.9,3.2078]
[1756536479289,3.2078,4402.0,4401.0,0.238]
[1756536479491,3.2078,4402.0,4401.1,0.238]
[1756536479679,3.2078,4402.0,4400.9,3.2078]
[1756536479884,3.2078,4402.0,4401.0,0.238]
[1756536481988,34.3468347,4403.8,4401.0,4.238]
[1756536481989,3.2078,4402.3,4401.0,4.238]
[1756536482185,3.2078,4402.9,4401.4,3.2078]
[1756536482591,3.2078,4402.9,4401.5,0.238]
[1756536482790,3.2078,4402.9,4401.4,3.2078]
[1756536483294,3.2078,4402.4,4401.5,0.238]
[1756536483885,3.2078,4402.4,4401.4,3.2078]
[1756536484088,3.2078,4402.4,4401.5,0.238]
[1756536484390,3.2078,4402.4,4401.4,3.2078]
[1756536484890,3.2078,4402.4,4401.5,0.238]
[1756536485691,3.2078,4402.4,4401.4,3.2078]
[1756536485883,3.2078,4402.4,4401.5,0.238]
[1756536486894,3.2078,4401.9,4400.8,3.2078]
[1756536487089,3.2078,4401.9,4400.9,0.238]
[1756536487690,3.2078,4401.9,4400.8,3.2078]
[1756536487894,3.2078,4401.9,4400.9,0.238]
[1756536488194,3.2078,4401.9,4401.0,0.238]
[1756536488988,3.2078,4401.9,4401.1,0.22719999]
[1756536489194,3.2078,4402.6,4401.8,3.2078]
[1756536489393,3.2078,4402.6,4401.9,0.238]
[1756536490694,3.2078,4403.4,4402.0,0.22715999]
[1756536490893,3.2078,4403.4,4402.3,3.2078]
[1756536491091,3.2078,4403.4,4402.4,0.239]
[1756536493290,0.18993899,4403.3,4402.4,0.239]
[1756536493494,0.18993899,4403.2,4402.4,0.239]
[1756536493694,0.18993899,4403.1,4402.4,0.239]
[1756536493897,0.18993899,4403.0,4402.3,3.2078]
[1756536494096,0.18993899,4402.9,4402.4,0.238]
[1756536494296,0.18993899,4402.8,4402.4,0.238]
[1756536494498,0.18993899,4402.7,4402.4,0.238]
[1756536494799,0.18993899,4402.6,4402.4,0.238]
[1756536494998,0.18993899,4402.5,4402.4,0.238]
[1756536495690,0.18993899,4403.3,4402.3,3.2078]
[1756536495888,3.2078,4402.9,4402.4,0.238]
[1756536496092,0.18993899,4402.8,4402.4,0.238]
[1756536496290,0.18993899,4402.7,4402.4,0.238]
[1756536496496,0.18993899,4402.6,4402.4,0.238]
[1756536496701,0.18993899,4402.5,4402.4,0.238]
[1756536497090,0.18993899,4402.8,4402.4,0.238]
[1756536497390,0.18993899,4402.7,4401.8,3.2078]
[1756536497597,0.18993899,4402.6,4401.9,0.238]
[1756536497797,0.18993899,4402.5,4401.9,0.238]
[1756536497997,0.18993899,4402.4,4401.9,0.238]
[1756536498200,0.18993899,4402.3,4401.9,0.238]
[1756536498399,3.2078,4402.9,4401.9,0.238]
[1756536498600,0.19015398,4402.8,4401.9,0.238]
[1756536498804,0.19015398,4402.7,4401.9,0.238]
[1756536499006,0.19015398,4402.6,4401.9,0.238]
[1756536499199,0.19015398,4402.5,4401.9,0.238]
[1756536499394,0.19015398,4402.4,4401.9,0.238]
[1756536499604,0.19015398,4402.3,4401.9,0.238]
[1756536499807,3.2078,4402.9,4401.9,0.238]
[1756536500004,3.3979844,4402.8,4401.9,0.238]
[1756536500305,0.1901844,4402.7,4401.9,0.238]
[1756536500506,0.1901844,4402.6,4401.9,0.238]
[1756536500804,0.1901844,4402.5,4401.9,0.238]
[1756536501005,0.1901844,4402.4,4401.9,0.238]
[1756536501204,0.1901844,4402.3,4401.9,0.238]
[1756536501405,3.2078,4403.3,4401.9,0.238]
[1756536501606,0.19027053,4403.2,4401.9,0.238]
[1756536501902,0.19027053,4403.1,4401.9,0.238]
[1756536502104,3.2078,4402.8,4402.0,0.238]
[1756536502307,0.19027053,4402.7,4402.0,0.238]
[1756536502495,0.19027053,4402.6,4402.0,0.238]
[1756536502701,0.19027053,4402.5,4402.0,0.238]
[1756536502901,0.19027053,4402.4,4402.0,0.238]
[1756536503101,0.19027053,4402.3,4402.0,0.238]
[1756536503301,0.22713,4403.3,4402.0,0.238]
[1756536503502,0.19030644,4403.2,4402.0,0.238]
[1756536503702,0.19030644,4403.1,4402.0,0.238]
[1756536504008,0.19030644,4403.0,4402.0,0.238]
[1756536504202,0.19030644,4402.9,4402.1,0.238]
[1756536504506,0.19030644,4402.8,4402.1,0.238]
[1756536504706,0.19030644,4402.7,4402.1,0.238]
[1756536504903,0.19030644,4402.6,4402.1,0.238]
[1756536505103,0.19030644,4402.5,4402.1,0.238]
[1756536505408,0.19030644,4402.4,4402.1,0.238]
[1756536505612,3.43493,4403.4,4402.1,0.238]
[1756536505800,0.19030334,4403.3,4402.1,0.238]
[1756536506000,0.19030334,4403.2,4402.1,0.238]
[1756536506200,0.19030334,4403.1,4402.1,0.238]
[1756536506400,0.19030334,4403.0,4402.1,0.238]
[1756536506600,0.19030334,4402.9,4402.1,0.238]
[1756536506800,3.43493,4403.4,4402.4,3.2078]
[1756536506801,0.19030334,4402.8,4402.4,3.2078]
[1756536507007,0.19030334,4402.7,4402.4,3.2078]
[1756536507307,0.19030334,4402.6,4402.4,3.2078]
[1756536507607,0.19030334,4402.5,4402.4,3.2078]
[1756536508406,0.19030334,4402.5,4402.4,7.2078]
[1756536508996,0.19030334,4402.5,4402.4,7.4448]
[1756536509406,0.19030334,4402.5,4402.4,3.2078]
[1756536509606,0.19030334,4402.5,4402.4,3.4448]
[1756536509801,0.19033572,4402.5,4402.4,3.4448]
[1756536510006,0.19033579,4403.3,4402.4,3.4448]
[1756536510208,0.19033579,4403.2,4402.4,3.4448]
[1756536510407,0.19033579,4403.1,4402.4,3.4448]
[1756536510609,0.19033579,4403.0,4402.4,3.4448]
[1756536510807,0.19033579,4402.9,4402.4,3.4448]
[1756536511001,0.19033579,4402.8,4402.1,2.02876114]
[1756536511203,0.19033579,4402.7,4402.2,0.237]
[1756536511501,0.19033579,4402.6,4401.9,3.2078]
[1756536511701,0.19033579,4402.5,4402.0,0.237]
[1756536511896,0.19033579,4402.4,4402.0,0.237]
[1756536512101,0.19033579,4402.3,4402.0,0.237]
[1756536512309,0.19033579,4402.2,4401.9,3.2078]
[1756536512604,0.19033579,4402.1,4402.0,0.237]
[1756536512800,0.19033579,4402.8,4402.0,0.237]
[1756536513003,0.19033579,4402.7,4402.0,0.237]
[1756536513204,3.2078,4402.9,4402.0,2.26576114]
[1756536513205,0.19033579,4402.6,4402.0,2.26576114]
[1756536513404,0.19918988,4402.5,4402.0,2.26576114]
[1756536513604,0.19918988,4402.4,4402.0,2.26576114]
[1756536513805,0.19918988,4402.3,4402.0,2.26576114]
[1756536514000,0.19918988,4402.2,4402.0,2.02876114]
[1756536514206,3.2078,4402.9,4402.0,2.02876114]
[1756536514207,0.19918988,4402.1,4402.0,2.02876114]
[1756536514408,0.19918988,4402.8,4402.0,0.237]
[1756536514708,0.19918988,4402.7,4401.8,34.74176114]
[1756536514902,0.19918988,4402.6,4401.9,0.237]
[1756536515103,0.19918988,4402.5,4401.9,0.237]
[1756536515305,0.19918988,4402.4,4401.9,0.237]
[1756536515505,0.19918988,4402.3,4401.9,0.237]
[1756536515709,0.19918988,4402.2,4401.9,0.237]
[1756536515899,0.4913,4402.0,4401.9,0.7068]
[1756536516211,0.69048988,4402.0,4401.9,0.7068]
[1756536517406,0.69048988,4402.0,4401.9,0.1866]
[1756536517606,0.69048988,4402.0,4401.8,34.74176114]
[1756536517607,0.285,4401.9,4401.8,34.74176114]
[1756536517807,0.48418988,4401.9,4401.8,32.95]
[1756536519705,0.19918988,4401.9,4401.8,33.2343]
[1756536519903,0.4765,4402.1,4402.0,0.477]
[1756536520205,0.67583737,4402.1,4402.0,0.477]
[1756536520401,0.67584136,4402.1,4402.0,0.1927]
[1756536520609,0.67584145,4402.1,4402.0,0.1927]
[1756536520806,0.67584145,4402.1,4402.0,0.4297]
[1756536521408,0.67584145,4402.1,4402.0,0.714]
[1756536521608,0.67584145,4402.1,4402.0,0.4297]
[1756536523414,0.67584145,4402.1,4402.0,0.714]
[1756536526219,0.67584145,4402.1,4402.0,0.477]
[1756536526515,0.67584145,4402.1,4402.0,0.713]
[1756536527918,0.67584145,4402.1,4401.8,2.02876114]
[1756536528119,0.67584145,4402.0,4401.9,0.236]
[1756536528815,0.39084145,4402.0,4401.9,0.236]
[1756536529018,0.67584145,4402.0,4401.9,0.236]
[1756536531115,0.67588549,4402.0,4401.9,0.236]
[1756536531509,0.4765,4401.8,4401.7,2.02876114]
[1756536531711,0.67588416,4401.8,4401.7,2.26476114]
[1756536531914,0.19938416,4401.8,4401.7,0.713]
[1756536533115,0.67588416,4401.8,4401.7,0.713]
[1756536534618,0.67588416,4401.8,4401.7,2.74502352]
[1756536536218,0.67588416,4401.8,4401.7,0.713]
[1756536537608,0.285,4401.7,4401.6,0.1927]
[1756536537813,0.67588416,4401.7,4401.6,0.713]
[1756536538614,0.19938416,4401.7,4401.6,0.713]
[1756536538914,0.19946165,4401.7,4401.6,0.713]
[1756536539114,0.19946165,4402.1,4401.6,0.713]
[1756536539322,0.4765,4401.9,4401.8,2.50943987]
[1756536539522,0.67596165,4401.9,4401.8,2.50943987]
[1756536540215,0.39096165,4401.9,4401.8,2.74443987]
[1756536540416,0.19946165,4401.9,4401.8,0.712]
[1756536540818,0.67596165,4401.9,4401.8,0.712]
[1756536541222,0.67604408,4401.9,4401.8,0.712]
[1756536542122,0.67604571,4401.9,4401.8,0.712]
[1756536546022,0.67604571,4401.9,4401.8,0.477]
[1756536546226,0.67604571,4401.9,4401.8,0.712]
[1756536547722,0.67604571,4401.9,4401.8,0.477]
[1756536547922,0.67604571,4401.9,4401.8,0.712]
[1756536551224,0.4765,4401.9,4401.8,0.712]
[1756536551425,0.67727378,4401.9,4401.8,0.712]
[1756536554129,0.67727378,4401.9,4400.7,36.7648265]
[1756536554130,0.4719,4401.8,4401.7,2.03264249]
[1756536554315,0.67267378,4401.8,4401.7,0.235]
[1756536554515,0.67267378,4401.8,4401.7,0.4816]
[1756536554720,0.67267378,4401.8,4401.7,0.7156]
[1756536554916,0.67267378,4401.8,4401.7,0.4308]
[1756536555122,0.67267378,4401.8,4401.7,0.234]
[1756536555323,0.2828,4401.7,4401.6,2.03264249]
[1756536555525,0.67267378,4401.7,4401.6,2.26664249]
[1756536558225,0.67267378,4401.7,4401.6,0.234]
[1756536559924,0.2828,4401.6,4401.4,2.03264249]
[1756536560124,0.2828,4401.6,4401.0,0.2848]
[1756536560125,0.4719,4401.6,4401.5,0.234]
[1756536560331,0.67257657,4401.6,4401.5,0.234]
[1756536560629,0.4719,4401.5,4401.4,0.234]
[1756536560832,0.67257657,4401.5,4401.4,0.234]
[1756536561831,0.67247786,4401.5,4401.4,0.234]
[1756536562630,0.2828,4401.4,4401.3,0.234]
[1756536562833,3.88027786,4401.4,4401.3,0.234]
[1756536564332,3.88027786,4401.4,4401.1,0.2848]
[1756536564530,0.4719,4401.1,4401.0,2.31744249]
[1756536564727,0.67247786,4401.1,4401.0,2.74824249]
[1756536564925,0.67247786,4401.1,4401.0,2.51424249]
[1756536565126,0.67247786,4401.1,4401.0,2.74824249]
[1756536565329,0.67247786,4401.1,4401.0,0.7156]
[1756536566433,0.67247786,4401.1,4401.0,0.4816]
[1756536567133,0.67247786,4401.1,4401.0,0.7156]
[1756536569833,0.20057786,4401.1,4401.0,0.7156]
[1756536570135,0.48337786,4401.1,4401.0,0.7156]
[1756536570334,0.67247786,4401.1,4401.0,0.7156]
[1756536572436,0.67204039,4401.1,4401.0,0.7156]
[1756536572835,0.2828,4401.0,4400.7,2.03264249]
[1756536573035,0.4719,4400.8,4400.7,0.7156]
[1756536573233,0.67204039,4400.8,4400.7,0.7156]
[1756536573832,0.67204039,4400.8,4400.4,2.03264249]
[1756536573833,0.1891,4400.5,4400.4,2.03264249]
[1756536574038,0.67205282,4400.5,4400.4,0.4816]
[1756536574237,0.20015282,4400.5,4400.4,0.4816]
[1756536574430,0.4719,4400.9,4400.8,0.1968]
[1756536574630,0.67203482,4400.9,4400.8,0.4816]
[1756536582751,0.67203482,4400.9,4400.8,0.1968]
[1756536583141,0.67207643,4400.9,4400.8,0.1968]
[1756536583846,0.67207643,4400.9,4400.8,0.4936]
[1756536585452,0.38927643,4400.9,4400.7,0.5308]
[1756536585653,0.67647643,4400.8,4400.7,0.5308]
[1756536586756,0.67658661,4400.8,4400.7,0.234]
[1756536586956,0.39648661,4400.8,4400.5,0.2968]
[1756536587150,0.4763,4400.8,4400.7,0.234]
[1756536587350,0.67658652,4400.8,4400.7,0.234]
[1756536588759,0.67658652,4400.8,4400.7,0.4848]
[1756536588953,0.67658652,4400.8,4400.7,0.7188]
[1756536589960,0.20028652,4400.8,4400.7,0.7188]
[1756536590250,0.20033294,4400.8,4400.7,2.75144249]
[1756536590652,0.48043294,4400.8,4400.7,0.7188]
[1756536590857,0.48043294,4400.8,4400.7,2.75144249]
[1756536591258,0.20033294,4400.8,4400.7,2.75144249]
[1756536593568,0.20039726,4400.8,4400.7,2.75144249]
[1756536594364,0.20040967,4400.8,4400.7,2.75144249]
[1756536595464,0.48050967,4400.8,4400.7,2.75144249]
[1756536595765,0.67670967,4400.8,4400.7,2.75144249]
[1756536597270,0.67675832,4400.8,4400.7,2.75144249]
[1756536599769,0.67675832,4400.8,4400.7,2.51744249]
[1756536599969,0.67675832,4400.8,4400.7,2.75144249]
[1756536601375,0.67675832,4400.8,4400.7,0.4848]
[1756536601568,0.67675832,4400.8,4400.7,0.7188]
[1756536603178,0.67717664,4400.8,4400.7,0.7188]
[1756536603580,0.4763,4400.8,4400.7,0.7188]
[1756536603780,0.67717545,4400.8,4400.7,0.7188]
[1756536604481,0.67717545,4400.8,4400.7,0.4848]
[1756536605081,0.67717545,4400.8,4400.7,0.7188]
[1756536606282,0.67717545,4400.8,4400.7,0.4848]
[1756536606471,0.67717545,4400.8,4400.7,0.7188]
[1756536608071,0.67717545,4400.8,4400.7,2.03152066]
[1756536608277,0.67717545,4400.8,4400.7,2.26552066]
[1756536609383,0.67717545,4400.8,4400.7,2.03152066]
[1756536609586,0.4994,4400.5,4400.4,1.72402066]
[1756536609775,0.4994,4399.9,4399.5,0.234]
[1756536609981,0.4994,4399.6,4399.5,0.234]
[1756536610179,0.70027545,4399.6,4399.5,0.4272]